Cogmind - Beta 16 @@@ ROGUE MODE // 2025.12.28 @ 15:26:20 Player: winnking222 Result: Self-destructed Performance ------------- Evolutions (0) 0 Regions Visited (5) 1000 Robots Destroyed (42) 210 Value Destroyed (1106) 1106 Prototype IDs (27) 540 Alien Tech Used (0) 0 Bonus (348) 348 TOTAL SCORE: 3204 Bonus ------- Follower Combat Kills 129 Registered with UFD 300 Friendly Fire -81 Cogmind --------- Core Integrity 59/250 Matter 130/300 Energy 172/200 System Corruption 3% Temperature Cool (0) Movement Treading (250) Ox1 Location -8/Scraptown Parts ------- > --- POWER (1) -------- Subdweller Power Source > --- PROPULSION (2) --- Light Treads Spiked Treads > --- UTILITY (2) ------ High-capacity Storage Unit Field Manipulator > --- WEAPON (2) ------- (None) > --- INVENTORY (20) --- Subdweller Power Source Subdweller Monowheel Subdweller Monowheel VTOL Module Seismic Detector Makeshift Light Armor Plating Vortex Trap Peak State ------------ > --- POWER ------------ Subdweller Power Source > --- PROPULSION ------- Light Treads Spiked Treads > --- UTILITY ---------- High-capacity Storage Unit V3-11A's Pendant > --- WEAPON ----------- Subdweller Laser Light Cannon > --- INVENTORY -------- Subdweller Power Source Makeshift Power Source Improved Aluminum Leg Subdweller Monowheel Subdweller Monowheel Subdweller Monowheel VTOL Module VTOL Module VTOL Module Small Storage Unit Seismic Detector Light Armor Plating Makeshift Light Armor Plating Scrap Shield Makeshift Hacking Suite Rainbow Chip Light Cannon Rocket Launcher Shrapnel Trap [Rating: 17] Favorites ----------- Power Subdweller Power Source Engine Subdweller Power Source Propulsion Light Treads Treads Light Treads Leg Aluminum Leg Utility High-capacity Storage Unit Device V3-11A's Pendant Storage High-capacity Storage Unit Hackware Authchip [Propulsion] Protection Makeshift Light Armor Plating Weapon Light Cannon Energy Gun Small Laser Energy Cannon Subdweller Beam Cannon Ballistic Cannon Light Cannon Launcher Rocket Launcher Build | -11 -10 -10 -10 -8 -8 ------- Run | Yrd Mat Min Sub Rec Scr Slots Evolved . | . . . . . . Power . | . . . . . . Propulsion . | . . . . . . Utility . | . . . . . . Weapon . | . . . . . . Parts Attached 40 | 7 11 2 16 1 3 Power 7 | 1 1 . 5 . . Engine 7 | 1 1 . 5 . . Core . | . . . . . . Reactor . | . . . . . . Propulsion 7 | 2 2 . 2 1 . Treads 5 | . 2 . 2 1 . Leg 2 | 2 . . . . . Wheel . | . . . . . . Hover . | . . . . . . Flight . | . . . . . . Utility 10 | 2 2 . 3 . 3 Device 3 | 1 . . 1 . 1 Storage 3 | 1 2 . . . . Processor . | . . . . . . Hackware 1 | . . . . . 1 Protection 3 | . . . 2 . 1 Artifact . | . . . . . . Weapon 16 | 2 6 2 6 . . Energy Gun 4 | 2 1 . 1 . . Energy Cannon 6 | . 4 . 2 . . Ballistic Gun . | . . . . . . Ballistic Cannon 5 | . . 2 3 . . Launcher 1 | . 1 . . . . Special Weapon . | . . . . . . Impact Weapon . | . . . . . . Slashing Weapon . | . . . . . . Piercing Weapon . | . . . . . . Special Melee Weapon . | . . . . . . Unidentified Prototypes 1 | . . . 1 . . Corrupted Parts 1 | . . . . . 1 System Corruption 3 | . . . . . 3 Parts Lost 3 | . 1 . 2 . . Power 1 | . . . 1 . . Propulsion 1 | . . . 1 . . Utility . | . . . . . . Weapon 1 | . 1 . . . . Highest Loss Streak 1 | . 1 . 1 . . To Critical Strikes . | . . . . . . Average Backups 14 | 4 15 19 18 18 10 Power . | . 1 1 . 1 1 Propulsion 6 | 2 8 9 8 6 4 Utility 4 | . 2 3 5 7 3 Weapon 2 | 1 4 6 3 4 1 Tool/Special . | . . . . . . Unused Backups 26 | . 8 3 5 . 10 Power 1 | . . . . . 1 Propulsion 16 | . 6 . 4 . 6 Utility 4 | . . 1 1 . 2 Weapon 5 | . 2 2 . . 1 Tool/Special . | . . . . . . Average Slot Usage (%) 91 | . 100 100 99 100 77 Engine 13 | . 14 14 13 14 14 Treads 26 | . 14 28 28 28 28 Leg 1 | . 13 . . . . Device 6 | . 14 14 6 14 . Storage 14 | . 14 14 14 14 14 Protection 6 | . . . 7 . 8 Energy Gun 1 | . 18 . . . . Energy Cannon 7 | . 9 18 5 14 5 Ballistic Cannon 12 | . . 9 22 14 5 Peak Build Rating 17 | 7 12 11 17 17 17 Average Rating 13 | 4 9 10 14 16 12 On Entrance 10 | . 7 11 9 17 17 Avg Prop Armor Cover (%) . | . . . . . . Naked Turns . | . . . . . . Heaviest Build 57 | 13 54 54 57 57 57 Greatest Support 40 | 20 40 40 40 40 40 Greatest Overweight (x) 1 | 1 1 1 1 1 1 Average Overweight (x) . | . . 1 1 1 1 Largest Inventory Capacity 20 | 8 20 20 20 20 20 Average Capacity 19 | 7 16 20 20 20 20 Most Carried 20 | 8 20 20 20 20 20 Average Carried 16 | 4 15 19 19 19 11 Final Capacity 20 | 8 20 20 20 20 20 Final Carried 20 | 7 20 19 20 20 7 Class Distribution -------------------- 100% | Mutant Dominant Class ---------------- Mutant | -10/Materials Mutant | -10/Mines Mutant | -10/Subcaves Mutant | -8/Recycling Mutant | -8/Scraptown Resources | -11 -10 -10 -10 -8 -8 ----------- Run | Yrd Mat Min Sub Rec Scr Matter Collected 1249 | 270 168 139 625 10 37 Remotely . | . . . . . . Salvage Created 1253 | 150 323 220 552 . 8 Parts 94 | 12 22 13 46 . 1 Haulers Intercepted . | . . . . . . Recyclers Shooed . | . . . . . . Parts Field Recycled . | . . . . . . Retrieved Matter . | . . . . . . Parts Self-Destructed 18 | . . . 18 . . Prevented . | . . . . . . Parts Restored . | . . . . . . Kills | -11 -10 -10 -10 -8 -8 ------- Run | Yrd Mat Min Sub Rec Scr Combat Hostiles Destroyed 36 | . 12 8 16 . . Guns 2 | . 2 . . . . Cannons 24 | . 1 8 15 . . AOE 10 | . 9 . 1 . . Classes Destroyed 10 | 3 3 2 1 . 1 Worker 4 | 2 2 . . . . Tunneler 2 | 2 . . . . . Recycler 1 | 1 . . . . . Watcher 1 | . 1 . . . . Swarmer 10 | . 5 3 2 . . Grunt 10 | . 7 1 2 . . Sentry 2 | . . 2 . . . Subdweller 12 | . . . 12 . . Scientist 1 | . . . . . 1 Assembled 2 | . . 2 . . . Best Kill Streak 6 | 3 6 3 2 . 1 Combat Bots Only 5 | . 5 3 2 . . Max Kills in Single Turn 2 | 2 2 1 1 . 1 Gunslinging . | . . . . . . Exploded 2 | . 2 . 1 . . Melee . | . . . . . . Uniques/NPCs Destroyed . | . . . . . . Combat | -11 -10 -10 -10 -8 -8 -------- Run | Yrd Mat Min Sub Rec Scr Hostile Shots Fired 153 | . 53 18 80 . 2 Missed 48 | . 17 4 26 . 1 Hits 105 | . 36 14 54 . 1 Melee 1 | . . 1 . . . Projectile 104 | . 36 13 54 . 1 Critical Strikes 4 | . 1 . 3 . . Damage Taken 1660 | . 508 157 919 . 76 Core 191 | . 61 26 94 . 10 Absorbed by Shields . | . . . . . . Core Remaining (%) 100 | 100 . . . . . Volleys Fired 151 | 4 53 33 61 . . Largest 2 | 2 2 2 2 . . Hottest 112 | 80 112 112 110 . . Shots Fired 265 | 8 100 46 111 . . Gun 82 | 8 70 . 4 . . Cannon 173 | . 22 46 105 . . Launcher 10 | . 8 . 2 . . Special . | . . . . . . Kinetic 114 | . . 25 89 . . Thermal 90 | 8 62 . 20 . . Explosive 10 | . 8 . 2 . . Electromagnetic 51 | . 30 21 . . . Robot Hit Streak 11 | 4 7 6 11 . . Robot Miss Streak 7 | 1 7 2 3 . . Penetration Max . | . . . . . . Secondary Targets . | . . . . . . Shots Hit Robots 120 | 5 48 10 57 . . Core Hits 75 | 6 25 8 32 . 4 Critical Kills . | . . . . . . Critical Parts Destroyed . | . . . . . . Critical Strikes 2 | . . . 2 . . Blast 2 | . . . 2 . . Melee Attacks . | . . . . . . Impact . | . . . . . . Slashing . | . . . . . . Piercing . | . . . . . . Sneak Attacks . | . . . . . . Combat Hostiles . | . . . . . . Follow-up Attacks . | . . . . . . Damage Inflicted 2953 | 63 1317 194 1232 . 147 Guns 414 | 63 351 . . . . Cannons 1469 | . 196 194 1079 . . Explosions 1062 | . 766 . 149 . 147 Melee . | . . . . . . Ramming 8 | . 4 . 4 . . Kinetic 1027 | . . 35 845 . 147 Thermal 750 | 63 453 . 234 . . Explosive 697 | . 548 . 149 . . Electromagnetic 471 | . 312 159 . . . Impact . | . . . . . . Slashing . | . . . . . . Piercing . | . . . . . . Highest Corruption 3 | . . . . . 3 Average Corruption 3 | . . . . . 3 Corruption Purged . | . . . . . . Corruption Blocked . | . . . . . . Effects 60 | . . . . . 60 Message Errors 14 | . . . . . 14 Matter Fused 22 | . . . . . 22 Heat Flow Errors 6 | . . . . . 6 Energy Discharges 4 | . . . . . 4 Data Loss (minor) 11 | . . . . . 11 Data Loss (major) 2 | . . . . . 2 Alerts 1 | . . . . . 1 Overload Shots . | . . . . . . Overflow Damage 3 | . 3 . . . . Projectiles . | . . . . . . Explosions 3 | . 3 . . . . Melee . | . . . . . . Knockbacks 11 | . . 1 10 . . Impact . | . . . . . . Kinetic 11 | . . 1 10 . . Secondary . | . . . . . . Self-Inflicted Damage 143 | . 62 . 14 . 67 Shots 4 | . 2 . 1 . 1 Rammed 3 | . 2 . 1 . . Targets Rammed 3 | . 2 . 1 . . Kicked . | . . . . . . Crushed . | . . . . . . Highest Temperature 277 | 54 222 204 277 . 277 Average Temperature 65 | 25 52 65 165 . 103 Received Heat Transfer 658 | . 174 50 434 . . Siege Activations . | . . . . . . Martial Activations . | . . . . . . Shielding Activations . | . . . . . . Robots Disrupted . | . . . . . . Combat Hostiles . | . . . . . . Robots Corrupted . | . . . . . . Combat Hostiles . | . . . . . . Parts Fried . | . . . . . . Impact Corruptions . | . . . . . . Robots Melted . | . . . . . . Combat Hostiles . | . . . . . . Parts Melted 2 | 1 1 . . . . Heat Transferred 1232 | 150 786 . 296 . . Parts Sabotaged . | . . . . . . Parts Stolen . | . . . . . . Parts Stripped . | . . . . . . Power Chain Reactions 4 | . 4 . . . . Alert | -11 -10 -10 -10 -8 -8 ------- Run | Yrd Mat Min Sub Rec Scr Maximum Alert Level 1 | . 1 . . . . Low Security (%) 97 | 100 94 100 . 100 . Level 1 2 | . 5 . . . . Level 2 . | . . . . . . Level 3 . | . . . . . . Level 4 . | . . . . . . Level 5 . | . . . . . . High Security . | . . . . . . Max Security . | . . . . . . Peak Influence 221 | 10 221 128 . 62 . Initial 43 | . 6 43 . 15 . Average 49 | 1 89 36 . 14 . Influence Increases 1004 | 25 438 145 150 246 . Destroy 0b10 Robot/C 500 | . 240 120 80 60 . Destroy 0b10 Robot/NC 40 | 25 15 . . . . Destroy Leader 92 | . 72 10 10 . . Allied During Kill 6 | . . . . 6 . Successful Hack 52 | . 23 . . 29 . Select Force Hacks 150 | . . . . 150 . Disable Machine 45 | . 30 15 . . . Destroy Structure 44 | . 43 . . 1 . Lose Combat Pursuer 75 | . 15 . 60 . . Influence Decreases 1004 | 15 336 257 117 279 . Entered New Map 91 | . 4 69 . 18 . Time Decay 903 | 15 322 188 117 261 . Lost Part 10 | . 10 . . . . Squads Dispatched 4 | . 4 . . . . Investigation 2 | . 2 . . . . Extermination . | . . . . . . Reinforcement 2 | . 2 . . . . Assault . | . . . . . . Garrison . | . . . . . . Intercept . | . . . . . . Searches Triggered . | . . . . . . Construction Impeded . | . . . . . . Haulers Reinforced . | . . . . . . Active Scanning Responses . | . . . . . . Cargo Convoy Interrupts . | . . . . . . Stealth | -11 -10 -10 -10 -8 -8 --------- Run | Yrd Mat Min Sub Rec Scr Distress Signals 1 | . . 1 . . . Communications Jammed . | . . . . . . Distress Signals . | . . . . . . Times Spotted 59 | . 27 8 22 1 1 Peak Tracking Total 5 | . 4 2 4 1 5 Tactical Retreats 3 | . 1 . 2 . . Traps | -11 -10 -10 -10 -8 -8 ------- Run | Yrd Mat Min Sub Rec Scr Traps Triggered 5 | . 2 . 2 . 1 Indirectly . | . . . . . . Trap Hack Attempts . | . . . . . . Triggered . | . . . . . . Disarmed . | . . . . . . Reprogrammed . | . . . . . . Reused . | . . . . . . Traps Extracted . | . . . . . . Installed 2 | . . . 1 . 1 Triggered . | . . . . . . Most Traps Carried 1 | . . . 1 1 1 Machines | -11 -10 -10 -10 -8 -8 ---------- Run | Yrd Mat Min Sub Rec Scr Machines Disabled 6 | . 2 1 1 . 2 Max in Single Turn 2 | . 1 1 1 . 2 Machines Repaired . | . . . . . . Machines Dismantled . | . . . . . . Machines Sabotaged . | . . . . . . Overloaded Fab Kills . | . . . . . . Hacking | -11 -10 -10 -10 -8 -8 --------- Run | Yrd Mat Min Sub Rec Scr Machines Accessed 21 | . 6 . 2 11 2 Terminals 12 | . 6 . . 6 . Fabricators . | . . . . . . Repair Stations . | . . . . . . Recycling Units 5 | . . . . 5 . Scanalyzers . | . . . . . . Garrison Access . | . . . . . . Total Hacks 45 | . 16 . 5 19 5 Successful 34 | . 9 . 5 15 5 Failed 11 | . 7 . . 4 . Catastrophic . | . . . . . . Database Lockouts . | . . . . . . Manual 35 | . 16 . . 19 . Terminals 30 | . 16 . . 14 . Fabricators . | . . . . . . Repair Stations . | . . . . . . Recycling Units 5 | . . . . 5 . Scanalyzers . | . . . . . . Garrison Access . | . . . . . . Terminal Hacks 11 | . . . 5 1 5 Record 8 | . . . 4 . 4 Part Schematic 1 | . . . . 1 . Proto ID Catalog 2 | . . . 1 . 1 Fabricator Hacks . | . . . . . . Repair Station Hacks . | . . . . . . Recycling Unit Hacks . | . . . . . . Scanalyzer . | . . . . . . Garrison Access Hacks . | . . . . . . Unauthorized Hacks 23 | . 9 . . 14 . Terminals 18 | . 9 . . 9 . Botnet 8 | . 4 . . 4 . Skim 10 | . 5 . . 5 . Fabricators . | . . . . . . Repair Stations . | . . . . . . Recycling Units 5 | . . . . 5 . Tunnel 5 | . . . . 5 . Scanalyzers . | . . . . . . Garrison Access . | . . . . . . Data Cores Recovered . | . . . . . . Used . | . . . . . . Hacking Detections 10 | . 5 . . 5 . Full Trace Events 1 | . 1 . . . . Feedback Events . | . . . . . . Feedback Blocked . | . . . . . . Robot Schematics Acquired . | . . . . . . Robots Built . | . . . . . . Authchips . | . . . . . . Time . | . . . . . . Total Robot Build Rating . | . . . . . . Part Schematics Acquired 1 | . . . . 1 . Parts Built . | . . . . . . Authchips . | . . . . . . Time . | . . . . . . Total Part Build Rating . | . . . . . . Part Studies Acquired . | . . . . . . Parts Repaired . | . . . . . . Time . | . . . . . . Parts Recycled . | . . . . . . Recycled Matter . | . . . . . . Retrieved Matter . | . . . . . . Retrieved Components . | . . . . . . Parts Scanalyzed . | . . . . . . Part Schematics Acquired . | . . . . . . Parts Damaged . | . . . . . . Bothacking | -11 -10 -10 -10 -8 -8 ------------ Run | Yrd Mat Min Sub Rec Scr Used RIF Installer . | . . . . . . Robots Hacked . | . . . . . . Non-combat . | . . . . . . Combat . | . . . . . . Robot Hacks Applied . | . . . . . . Relay Couplers Released . | . . . . . . Fabnet Peak Effective % . | . . . . . . Robots Rewired . | . . . . . . Allies Hacked . | . . . . . . Hacks Repelled . | . . . . . . Allies | -11 -10 -10 -10 -8 -8 -------- Run | Yrd Mat Min Sub Rec Scr Total Allies 2 | . . . 2 . . Largest Group 2 | . . . 2 2 2 Highest-Rated Group 38 | . . . 38 38 38 Highest-Rated Ally 19 | . . . 19 19 19 Total Orders . | . . . . . . Ally Attacks 15 | . . . 3 6 6 Total Damage 268 | . . . 43 104 121 Kills 6 | . . . 1 3 2 Allies Corrupted . | . . . . . . Allies Melted . | . . . . . . Intel | -11 -10 -10 -10 -8 -8 ------- Run | Yrd Mat Min Sub Rec Scr Active Infowar (turns) 2186 | 8 1365 610 203 . . Seismic 2186 | 8 1365 610 203 . . Robot Analysis Total . | . . . . . . Derelict Logs Recovered 7 | . . . 2 . 5 Drone Launches . | . . . . . . Drone Recoveries . | . . . . . . Exploration | -11 -10 -10 -10 -8 -8 ------------- Run | Yrd Mat Min Sub Rec Scr Turns Passed 14620 | 110 1365 610 5573 1177 5785 Spaces Moved 5696 | 61 563 212 2140 426 2294 Core 10 | 10 . . . . . Treads 5387 | . 315 212 2140 426 2294 Legs 299 | 51 248 . . . . Wheels . | . . . . . . Hover . | . . . . . . Flight . | . . . . . . Fastest Speed 50 | 50 120 240 240 250 250 Average Speed 241 | 128 188 240 247 250 250 Slowest Speed 250 | 190 240 240 250 250 250 Overloaded Moves . | . . . . . . Propulsion Burnouts . | . . . . . . Robots Hopped . | . . . . . . Potential Cave-ins . | . . . . . . Cave-ins Triggered . | . . . . . . Exploration Rate (%) 68 | 4 96 40 97 96 80 Regions Visited 5 Branch Regions 4 Pre-discovered Areas 9 | . . . 1 6 2 Known Exits Taken 2 | . . . 1 1 . Unknown Exits Taken 3 | 1 1 1 . . . Scrap Searched 17 | . . . 8 . 9 Spaces Dug 4 | . . . 4 . . Terrain Destroyed 87 | . 68 . 19 . . Melee . | . . . . . . Projectile 5 | . . . 5 . . AOE 82 | . 68 . 14 . . Terrain Rammed . | . . . . . . Walls Destroyed . | . . . . . . Machines Disabled . | . . . . . . Actions | -11 -10 -10 -10 -8 -8 --------- Run | Yrd Mat Min Sub Rec Scr Total 6326 | 85 772 270 2310 540 2349 Wait 308 | . 98 15 49 111 35 Move 5692 | 60 562 211 2140 425 2294 Hop . | . . . . . . Pick Up 65 | 14 27 4 17 1 2 Fast Attach 3 | . 2 . 1 . . Attach 15 | 7 3 1 3 . 1 Detach . | . . . . . . Swap 32 | . 8 1 19 1 3 Drop 56 | . 17 5 19 2 13 Fire 151 | 4 53 33 61 . . Melee . | . . . . . . Ram . | . . . . . . Kick . | . . . . . . Crush 2 | . 2 . . . . Escape Stasis . | . . . . . . Rewire . | . . . . . . Trap 2 | . . . 1 . 1 Miscellaneous . | . . . . . . Route ------- -11/Scrapyard -10/Materials (discovered 5 exits: [*Mat x3] / [*Min x2]) -10/Mines (discovered 2 exits: [*Mat] / *Sub) -10/Subcaves (discovered 4 exits: *Mat x2 / *Rec / *Scr) -8/Recycling (discovered 2 exits: [*Fac] / *Scr) -8/Scraptown (discovered 1 exit: [*Fac]) History --------- Turn | Location | Event 16 | -11/Scrapyard | Discovered new exit (range 15) 111 | -11/Scrapyard | Entered Materials 262 | -10/Materials | Discovered new exit (range 9) 273 | -10/Materials | Discovered new exit (range 9) 321 | -10/Materials | Build established: Mutant 484 | -10/Materials | Discovered new exit (range 15) 851 | -10/Materials | Discovered new exit (range 9) 995 | -10/Materials | Discovered new exit (range 14) 1476 | -10/Materials | Entered Mines 1606 | -10/Mines | Discovered new exit (range 5) 1624 | -10/Mines | Excavation squad dispatched 1624 | -10/Mines | A large section of the Mines collapsed 1985 | -10/Mines | Discovered new exit (range 6) 2086 | -10/Mines | Entered Subcaves 2087 | -10/Subcaves | Approached by a straggling Scientist 2294 | -10/Subcaves | Ambushed by Subdwellers from Twisted Machinery 2306 | -10/Subcaves | Core integrity fell below 50% 3008 | -10/Subcaves | Scientist uncovered a shortcut to Scraptown 3326 | -10/Subcaves | A swath of the cavern ceiling suddenly collapsed 3425 | -10/Subcaves | Learned location of Zion (-7) 3425 | -10/Subcaves | Met a Zionite searching for "candidates" 3834 | -10/Subcaves | Visited 4L-MR0's lab 3866 | -10/Subcaves | Found Rainbow Chip 3919 | -10/Subcaves | Discovered new exit (range 10) 4072 | -10/Subcaves | Shifting Twisted Machinery released Sub. Monowheel 4115 | -10/Subcaves | Shifting Twisted Machinery released Scrap Shield 4336 | -10/Subcaves | Identified exit to Materials 4575 | -10/Subcaves | A swath of the cavern ceiling suddenly collapsed 5172 | -10/Subcaves | Visited triangular shrine 5187 | -10/Subcaves | Found Prototype Device 5188 | -10/Subcaves | Identified V3-11A's Pendant 5193 | -10/Subcaves | Befriended Subdweller 5484 | -10/Subcaves | Disturbed a concealed Subdweller 5877 | -10/Subcaves | Shifting Twisted Machinery released Multitool 5968 | -10/Subcaves | Befriended Subdweller 6406 | -10/Subcaves | Visited Clippyterm 6413 | -10/Subcaves | Identified exit to Recycling 6413 | -10/Subcaves | Learned Factory garrison access intel 7142 | -10/Subcaves | Shifting Twisted Machinery released Sub. Monowheel 7659 | -10/Subcaves | Entered Recycling 7659 | -8/Recycling | Accompanied by 2 allies 7660 | -8/Recycling | Joined Warlord attack on 0b10 via Recycling 7833 | -8/Recycling | Discovered new exit (range 5) 8592 | -8/Recycling | Learned Storage stockpile data 8628 | -8/Recycling | Identified exit to Scraptown 8667 | -8/Recycling | Learned Storage emergency access door positions 8674 | -8/Recycling | Learned Storage garrison access intel 8677 | -8/Recycling | Scanned before Scraplab entrance 8679 | -8/Recycling | Learned 4 Factory zone layouts 8694 | -8/Recycling | Learned Storage security intel 8754 | -8/Recycling | Learned location of 1 exit from Extension 8808 | -8/Recycling | Entered Scraplab 8836 | -8/Recycling | Entered Scraptown 8836 | -8/Scraptown | Accompanied by 2 allies 9201 | -8/Scraptown | Delivered V3-11A's Pendant to T0-NE2 in exchange for information 9336 | -8/Scraptown | Visited CPS Storage 9549 | -8/Scraptown | Visited IN-MT5's Study 9636 | -8/Scraptown | Heard Great Nut preacher, LISTEN AND RECITE! 9644 | -8/Scraptown | Visited Symbiants 9739 | -8/Scraptown | Visited Assassins FH 9754 | -8/Scraptown | Visited Bundlers 9966 | -8/Scraptown | Scanned Subdweller tech in exchange for log data 9971 | -8/Scraptown | Learned location of 1 exit from Factory 9974 | -8/Scraptown | Learned Factory trap positions 9976 | -8/Scraptown | Learned location of Warlord (-5) 9984 | -8/Scraptown | Learned location of Armory (-3) 10014 | -8/Scraptown | Discovered new exit (range 13) 10456 | -8/Scraptown | Visited UFD Registry 10456 | -8/Scraptown | Registered with UFD as "Macespawn" 10511 | -8/Scraptown | Visited Curators Association 10601 | -8/Scraptown | Visited Scrapoid Research Area 10699 | -8/Scraptown | Delivered Scrap Shield to a Scientist 10761 | -8/Scraptown | Visited Science Guys 10841 | -8/Scraptown | Visited Scrapoid Pod Storage 10874 | -8/Scraptown | Visited Research Penetration Think Tank 10916 | -8/Scraptown | Visited Cartography Club 10961 | -8/Scraptown | Visited Chapter 10 11001 | -8/Scraptown | Visited Observation Area 11041 | -8/Scraptown | Visited Infowarlord's Domain 11309 | -8/Scraptown | Warned about trapping Scraptown 14614 | -8/Scraptown | Attacked by Scraptown defenders 14619 | -8/Scraptown | Found Field Manipulator 14621 | -8/Scraptown | Self-destructed Last Messages --------------- 14281_ System corrupted: Matter fused (-6). 14384_ %#4IQZCUC QVKMTYO9>YAFXST2 14436_ System corrupted: Substantial component data lost. 14465_ System corrupted: Heat flow error (+125). 14504_ Searching scrap... 14504_ Found Visual Processing Unit. 14504_ Found 37 Matter. 14505_ Acquired 37 matter. 14614_ Triggered Shrapnel Trap. 14614_ An expanding cloud of shrapnel blasts out in all directions. 14614_ ANNOUNCEMENT: Intruder alert! Defend Scraptown! 14614_ Machine disabled. 14614_ SG-Prototypes Database disabled. 14614_ ZS-RP4(c) destroyed. 14615_ OH-6HS(c) destroyed. 14617_ WU-Q6R(c) destroyed. 14619_ Acquired Field Manipulator. 14619_ Penetrated by Bolt. 14619_ Bolt penetrates Supplies. 14620_ 4Q-6KC(h): "Nice to scrap you!" Map ----- +----------------------------------------------------+ | #### ##### ## ##??????????????????????????????? | | """" """"" "" "##########?????????????????????? | | "##"""""""#?????????????????????? | | "## """"""#?????????????????????? | | "## ""#?????????????????????? | | "## ""#?????????????????????? | | ""#?????????????????????? | | """""""""" "## "#?????????????????????? | | """""""""" "## ""#?????????????????????? | | ########"" "## " """"#?????????????????????? | | ???????#"" "##########?????????????????????? | | ???????#"" "#??""" #???????????????????????? | | ???????#"" "#?? "#???????????????????????? | | ?????###"" "#? "#???????????????????????? | | ###### #"" "## !"#???????????????????????? | | "#???????????????????????? | | "## "#???????????????????????? | | ###### #"" "#? "#???????????????????????? | | ?????###"" "#??""""#???????????????????????? | | ???????#"" "#??#####???????????????????????? | | ???????#"" "#??????????????????????????????? | | ???????#"" "#??????????????????????????????? | | ########"" "##############?????????????????? | | """""""""" ] "## " """"""#?????????????????? | | """"""""""h!] c *%"" "#?????????????????? | | ]=!!] "## @ #?????????????????? | | ]== "## R= #?????????????????? | | "## ""R #?????????????????? | | ## ""* #?????????????????? | | # %= #?????????????????? | | """""" """""" ## "#?????????????????? | | ###### ###### ## "" """#?????????????????? | | ????"""""???# ## """"" """#?????????????????? | | ??? ??# ##" """""""""#?????????????????? | | ??""" "#?# ##############?????????????????? | | ??"##" "??# #??????????????????????????????? | | ????# ??# #??????????????????????????????? | | ???? """ ??# ############???????????????????? | | ???? ##" #?# #???????????????????? | | ?????"??? #?# ##???????????????????? | | ????? ??????# #???????????????????? | | ????????????# #???????????????????? | | ????????????# #???????????????????? | | ????????????# ############???????????????????? | | ????######### #####??????????????????????????? | | "??#"""##"|"# """"#??????????????????????????? | | ""##""|##" # "" "#??????????????????????????? | | "#??????????????????????????? | | " "#??????????????????????????? | | ! """"#??????????????????????????? | +----------------------------------------------------+ Best States ------------- Heat Dissipation 25 Energy Generation 15 Energy Capacity 250 Matter Stores 300 Matter Capacity 300 Sight Range 16 Terrain Scan Density 10 Armor Coverage 150 Evasion (%) 55 Recoil Reduction 2 Authchip Count 1 Item Schematics ----------------- Plasma Cutter | -8/Recycling | Hacked Robot Schematics ------------------ None Fabricated ------------ Nothing Repaired ---------- Nothing Studied --------- None Alien Tech Used ----------------- None Achievements -------------- SUBSUB Challenges ------------ None Game ------ Seed HoverActiveEdition Manual? 0 Play Time 00:37:17 Cumulative 214.0 hours Start 2025.12.28 @ 13:50:51 End 2025.12.28 @ 15:26:20 Sessions 3 Manual Loads 0 Difficulty Rogue Special Mode None Game No. 301 Rogue 301 Adventurer 0 Explorer 0 Win Type - Total 3 Types 2/0/0/1/0/0/0/0/0/0 Lore% 74 Gallery% 73 Achievement% 49 Wizard Run 0 Options --------- Layout 0 ASCII 0 Keyboard 0 Movement Arrows Keybinds 0 Fullscreen 1 Font 16/SmallcapsGlow Map View 75x55 Zoom Use 0% Tactical HUD 1 Map Filters NONE Filters NONE Steam 1 RUN: b03a1826-6fe7-4417-a527-14d0f7d2183f